bitfinex-derivatives/quotes_BTCF0:USTF0_20240917
["timestamp","ask_amount","ask_price","bid_price","bid_amount"]
[1726531583610,0.23507407,58334.0,58333.0,0.00457113]
[1726531584000,0.30507407,58334.0,58333.0,0.00457113]
[1726531584193,0.30407407,58334.0,58333.0,0.00357113]
[1726531584401,0.31607407,58334.0,58333.0,0.00457113]
[1726531584805,0.40178307,58334.0,58333.0,0.00457113]
[1726531585108,0.31607407,58334.0,58333.0,0.00457113]
[1726531585306,0.40178307,58334.0,58333.0,0.00457113]
[1726531585908,0.51428,58333.0,58326.0,0.0551777]
[1726531586206,0.085723,58324.0,58323.0,0.0511777]
[1726531586411,0.92264001,58327.0,58321.0,0.0511777]
[1726531586598,0.446526,58322.0,58321.0,0.0511777]
[1726531586911,0.085726,58322.0,58319.0,0.085731]
[1726531587701,0.096726,58322.0,58321.0,0.086728]
[1726531588411,0.097726,58322.0,58321.0,0.085728]
[1726531588803,0.091726,58322.0,58321.0,0.085728]
[1726531589110,0.100726,58322.0,58321.0,0.086728]
[1726531590302,0.094726,58322.0,58321.0,0.086728]
[1726531590508,0.11378233,58322.0,58321.0,0.002]
[1726531602117,0.11418233,58322.0,58321.0,0.002]
[1726531603316,0.39990833,58322.0,58321.0,0.002]
[1726531603513,0.31418233,58322.0,58321.0,0.002]
[1726531603916,0.24418233,58322.0,58321.0,0.002]
[1726531612425,0.11418233,58322.0,58321.0,0.002]
[1726531612721,0.24418233,58322.0,58321.0,0.002]
[1726531615631,0.02845633,58322.0,58321.0,0.087728]
[1726531619734,0.02845633,58322.0,58321.0,0.091538]
[1726531620042,0.15845633,58322.0,58321.0,0.15989197]
[1726531622034,0.51925633,58322.0,58321.0,0.15989197]
[1726531623243,0.51925633,58322.0,58321.0,0.091538]
[1726531623821,0.38925633,58322.0,58321.0,0.091538]
[1726531625227,0.02845633,58322.0,58321.0,0.177266]
[1726531625538,0.02845633,58322.0,58321.0,0.26268138]
[1726531625739,0.02845633,58322.0,58321.0,0.39268138]
[1726531626645,0.02845633,58322.0,58321.0,0.26268138]
[1726531627136,0.02845633,58322.0,58321.0,0.177266]
[1726531627333,1e-06,58322.0,58321.0,1.377394]
[1726531627532,0.00257185,58325.0,58324.0,0.171446]
[1726531627734,0.00257185,58325.0,58324.0,0.7698855]
[1726531627928,0.00257185,58325.0,58324.0,1.2842455]
[1726531628132,0.00257185,58325.0,58324.0,1.3319455]
[1726531628639,0.00257185,58325.0,58324.0,1.3329455]
[1726531628839,0.01457185,58325.0,58324.0,0.8185855]
[1726531629639,0.02457185,58325.0,58324.0,0.8195855]
[1726531630443,0.02457185,58325.0,58324.0,0.9048377]
[1726531631538,0.02457185,58325.0,58324.0,0.90460427]
[1726531632044,0.02457185,58325.0,58324.0,0.90459584]
[1726531632438,0.02457185,58325.0,58324.0,0.7975982]
[1726531633338,0.02457185,58325.0,58324.0,0.712346]
[1726531634140,0.004,58332.0,58331.0,0.085713]
[1726531634340,0.3608,58335.0,58334.0,0.085709]
[1726531635242,0.4908,58335.0,58334.0,0.085709]
[1726531635747,0.4928,58335.0,58334.0,0.086709]
[1726531635936,0.5628,58335.0,58334.0,0.086709]
[1726531636342,0.6129,58335.0,58334.0,0.087709]
[1726531636550,1.02143059,58335.0,58334.0,0.002]
[1726531636857,1.22143059,58335.0,58334.0,0.002]
[1726531637747,1.82143059,58335.0,58334.0,0.002]
[1726531640562,0.085711,58332.0,58331.0,0.0004]
[1726531640766,0.086111,58332.0,58331.0,0.0004]
[1726531640963,0.600431,58332.0,58331.0,0.0004]
[1726531641864,0.086111,58332.0,58331.0,0.0004]
[1726531642065,0.086111,58332.0,58331.0,0.0014]
[1726531642365,0.086111,58332.0,58331.0,0.0024]
[1726531643454,0.11391038,58332.0,58331.0,0.0024]
[1726531644053,0.086111,58332.0,58331.0,0.0024]
[1726531644959,0.171822,58332.0,58331.0,0.0024]
[1726531645159,0.19962071,58332.0,58331.0,0.0024]
[1726531645460,1.31394071,58332.0,58331.0,0.0024]
[1726531649165,0.71394071,58332.0,58331.0,0.0024]
[1726531649370,0.71394072,58332.0,58331.0,0.0024]
[1726531649570,0.71394054,58332.0,58331.0,0.0024]
[1726531650058,1.43554054,58332.0,58331.0,0.0024]
[1726531651468,0.171432,58329.0,58328.0,0.00257165]
[1726531651664,0.371832,58329.0,58328.0,0.00257165]
[1726531652364,0.732632,58329.0,58328.0,0.00257165]
[1726531652564,0.732632,58329.0,58328.0,0.00457165]
[1726531656673,0.371832,58329.0,58328.0,0.00457165]
[1726531656876,0.732632,58329.0,58328.0,0.00457165]
[1726531657869,0.662632,58329.0,58328.0,0.00457165]
[1726531658177,0.67102041,58329.0,58328.0,0.00457165]
[1726531658364,0.58530441,58329.0,58328.0,0.00457165]
[1726531658566,0.45530441,58329.0,58328.0,0.09028865]
[1726531658767,0.45530441,58329.0,58328.0,0.22028865]
[1726531658966,0.36958841,58329.0,58328.0,0.22028865]
[1726531659774,0.45530441,58329.0,58328.0,0.22028865]
[1726531660670,0.45530441,58329.0,58328.0,0.09028865]
[1726531663177,0.09450441,58329.0,58328.0,0.09028865]
[1726531666475,0.09450441,58329.0,58328.0,0.14140496]
[1726531667684,0.09450441,58329.0,58328.0,0.09028865]
[1726531669790,0.09450441,58329.0,58328.0,0.14153328]
[1726531670785,0.09450441,58329.0,58328.0,0.00457165]
[1726531671073,0.20801884,58329.0,58328.0,0.002]
[1726531671587,1.32233884,58329.0,58328.0,0.002]
[1726531671781,1.52068183,58329.0,58328.0,0.002]
[1726531674185,1.41783884,58329.0,58328.0,0.002]
[1726531674581,1.37133884,58329.0,58328.0,0.002]
[1726531675087,0.25701884,58329.0,58328.0,0.002]
[1726531675279,0.77133884,58329.0,58328.0,0.002]
[1726531675479,0.77134028,58329.0,58328.0,0.002]
[1726531676081,0.25702028,58329.0,58328.0,0.002]
[1726531680387,0.25702005,58329.0,58328.0,0.002]
[1726531683998,0.38702005,58329.0,58328.0,0.002]
[1726531685401,0.09450441,58329.0,58328.0,0.002]
[1726531685605,0.22450441,58329.0,58328.0,0.002]
[1726531692619,0.58530441,58329.0,58328.0,0.002]
[1726531693512,0.58530441,58329.0,58328.0,0.00581]
[1726531695523,0.69881994,58329.0,58328.0,0.00581]
[1726531697426,0.61310394,58329.0,58328.0,0.00581]
[1726531698127,0.58530441,58329.0,58328.0,0.00581]
[1726531698326,0.61310408,58329.0,58328.0,0.00581]
[1726531699431,0.71594707,58329.0,58328.0,0.00581]
[1726531699819,0.61310408,58329.0,58328.0,0.00581]
[1726531700529,0.71594707,58329.0,58328.0,0.00581]
[1726531700928,0.61310408,58329.0,58328.0,0.00581]
[1726531701521,0.69882008,58329.0,58328.0,0.00581]
[1726531703434,1.05962008,58329.0,58328.0,0.00581]
[1726531704934,0.69882008,58329.0,58328.0,0.00581]
[1726531706830,0.61310408,58329.0,58328.0,0.00581]
[1726531707229,0.58600019,58329.0,58328.0,0.00581]
[1726531708031,0.48310408,58329.0,58328.0,0.00581]
[1726531709132,0.48310408,58329.0,58328.0,0.05451]
[1726531710337,0.61310408,58329.0,58328.0,0.05451]
[1726531712629,0.61310329,58329.0,58328.0,0.05451]
[1726531712829,0.61310329,58329.0,58324.0,0.06815508]
[1726531713032,0.61310329,58329.0,58321.0,0.07215508]
[1726531713033,0.1304,58325.0,58321.0,0.07215508]
[1726531713234,0.085728,58321.0,58315.0,0.085736]
[1726531713433,0.13,58320.0,58318.0,0.0494]
[1726531714154,0.085731,58319.0,58318.0,0.0494]
[1726531715934,0.285731,58319.0,58318.0,0.0494]
[1726531722541,0.646531,58319.0,58318.0,0.0494]
[1726531722743,0.646531,58319.0,58318.0,0.11783775]
[1726531723146,0.285731,58319.0,58318.0,0.11783775]
[1726531723342,0.285731,58319.0,58318.0,0.0494]
[1726531724239,0.285731,58319.0,58315.0,0.06844971]
[1726531724543,0.285731,58319.0,58314.0,0.11824971]
[1726531724544,0.085736,58315.0,58314.0,0.11824971]
[1726531724738,0.286136,58315.0,58314.0,0.0498]
[1726531724932,0.0004,58315.0,58314.0,0.0498]
[1726531725133,0.2004,58315.0,58314.0,0.11824971]
[1726531725342,0.2004,58315.0,58314.0,0.0498]
[1726531725550,0.2,58315.0,58314.0,0.0498]
[1726531725839,0.2,58315.0,58314.0,0.0548]
[1726531726041,0.0004,58316.0,58314.0,0.0548]
[1726531726245,0.0004,58316.0,58314.0,0.0588]
[1726531726442,0.2004,58316.0,58315.0,0.600176]
[1726531726747,0.00847497,58320.0,58319.0,0.085731]
[1726531727048,0.2,58320.0,58319.0,0.086131]
[1726531728337,0.2,58320.0,58319.0,0.135031]
[1726531729241,0.01122139,58322.0,58321.0,0.085728]
[1726531729242,0.00257237,58322.0,58321.0,0.085728]
[1726531729550,0.0012,58331.0,58330.0,0.085714]
[1726531729748,0.0012,58331.0,58330.0,0.63939467]
[1726531729949,0.0012,58331.0,58330.0,0.55353257]
[1726531730147,0.2012,58331.0,58330.0,0.446514]
[1726531730446,0.2012,58331.0,58330.0,0.495414]
[1726531730756,0.2012,58331.0,58330.0,0.496414]
[1726531731146,0.0012,58331.0,58330.0,1.610734]
[1726531731852,0.00257166,58334.0,58333.0,0.08571]
[1726531732151,0.00257166,58334.0,58333.0,0.08651]
[1726531732553,0.00257166,58334.0,58333.0,0.13201]
[1726531732748,0.00257166,58334.0,58333.0,0.17751]
[1726531733555,0.00257166,58334.0,58333.0,0.17851]
[1726531734950,0.00257166,58334.0,58333.0,0.17951]
[1726531737953,6.6e-07,58334.0,58333.0,0.26522]
[1726531738159,6.6e-07,58334.0,58333.0,1.46521]
[1726531738458,0.21114944,58344.0,58337.0,0.085704]
[1726531738655,0.01114944,58344.0,58343.0,0.086495]
[1726531739252,0.21114944,58344.0,58343.0,0.086495]
[1726531739459,0.21114944,58344.0,58343.0,1.732885]
[1726531739460,6.6e-07,58344.0,58343.0,1.732885]
[1726531739956,6.6e-07,58344.0,58343.0,1.932885]
[1726531740150,0.3608,58350.0,58343.0,1.932885]
[1726531740348,0.3608,58359.0,58358.0,0.085673]
[1726531740556,0.0474,58363.0,58362.0,0.085667]
[1726531740746,0.0474,58363.0,58362.0,0.086467]
[1726531740945,0.00883106,58363.0,58362.0,0.085667]
[1726531741154,0.3608,58364.0,58363.0,0.085666]
[1726531741347,0.3608,58364.0,58363.0,0.086466]
[1726531742654,0.3608,58364.0,58363.0,0.087466]
[1726531743056,0.3608,58364.0,58363.0,1.201466]
[1726531743257,0.3231,58374.0,58371.0,0.085654]
[1726531743455,0.00856761,58374.0,58371.0,0.086454]
[1726531745162,0.3608,58376.0,58371.0,1.401414]
[1726531745559,0.0484,58379.0,58371.0,1.401414]
[1726531745753,0.3608,58383.0,58382.0,0.085638]
[1726531745957,0.3608,58383.0,58382.0,0.086438]
[1726531746659,0.36941491,58383.0,58382.0,0.086438]
[1726531746861,0.56941491,58383.0,58382.0,0.0008]
[1726531747061,0.56941491,58383.0,58382.0,0.0018]
[1726531748263,0.56941491,58383.0,58382.0,0.0028]
[1726531749759,0.36941491,58383.0,58382.0,0.0028]
[1726531754070,0.45505191,58383.0,58382.0,0.0028]
[1726531760165,0.09425191,58383.0,58382.0,0.0028]
[1726531760361,0.45505191,58383.0,58382.0,0.0028]
[1726531763070,0.45505191,58383.0,58382.0,0.00298]
[1726531764770,0.085638,58382.0,58375.0,0.00656959]
[1726531764972,0.3608,58376.0,58375.0,0.00256959]
[1726531765668,0.446447,58376.0,58375.0,0.00256959]
[1726531766971,0.446447,58376.0,58375.0,0.00356959]
[1726531767669,0.446447,58376.0,58375.0,0.00256959]
[1726531767977,0.446447,58376.0,58375.0,0.00356959]
[1726531768277,0.446447,58376.0,58375.0,0.00456959]
[1726531770372,0.45515407,58376.0,58375.0,0.00456959]
[1726531772566,0.09435407,58376.0,58375.0,0.00456959]
[1726531772777,0.45515407,58376.0,58375.0,0.00456959]
[1726531773382,0.65515407,58376.0,58375.0,0.00456959]
[1726531778488,1.76907407,58376.0,58372.0,0.085652]
[1726531778691,1.76907407,58376.0,58362.0,0.00887438]
[1726531778692,0.3608,58373.0,58355.0,0.085677]
[1726531778881,0.3608,58362.0,58355.0,0.00657032]
[1726531779076,0.00257009,58365.0,58360.0,0.3608]
[1726531779281,0.00257009,58365.0,58355.0,0.46335452]
[1726531779282,0.3608,58361.0,58355.0,0.46335452]
[1726531779492,0.2,58356.0,58355.0,0.3608]
[1726531779781,0.5608,58356.0,58353.0,0.0987]
[1726531779986,0.3608,58356.0,58341.0,0.10255452]
[1726531780188,0.2,58346.0,58340.0,0.0495]
[1726531780386,0.195,58346.0,58340.0,0.0495]
[1726531780691,0.195,58346.0,58340.0,0.135199]
[1726531780989,0.188,58346.0,58340.0,0.135199]
[1726531781284,0.188,58346.0,58345.0,0.01657092]
[1726531782289,0.36337084,58350.0,58345.0,0.01657092]
[1726531782592,0.201,58346.0,58345.0,0.02257092]
[1726531783100,0.22,58346.0,58345.0,0.00357092]
[1726531783588,0.5808,58346.0,58345.0,0.00257092]
[1726531783787,0.5748,58346.0,58345.0,0.00357092]
[1726531783992,0.5858,58346.0,58345.0,0.00357092]
[1726531784784,0.225,58346.0,58345.0,0.00357092]
[1726531785186,0.5858,58346.0,58345.0,0.00357092]
[1726531785987,0.225,58346.0,58345.0,0.00357092]
[1726531786190,0.5858,58346.0,58345.0,0.00357092]
[1726531786584,0.671491,58346.0,58345.0,0.00357092]
[1726531797496,0.3858,58346.0,58332.0,0.1416]
[1726531797805,0.64691,58333.0,58332.0,0.1416]
[1726531798605,0.64691,58333.0,58332.0,0.0949]
[1726531798793,0.64691,58333.0,58326.0,0.08572]
[1726531799104,0.08612,58327.0,58324.0,0.00257183]
[1726531799404,0.2004,58325.0,58324.0,0.00257183]
[1726531800106,0.1944,58325.0,58324.0,0.00257183]
[1726531800489,0.1954,58325.0,58324.0,0.01757183]
[1726531802195,0.282122,58325.0,58324.0,0.01757183]
[1726531802904,0.002,58325.0,58324.0,0.01757183]
[1726531804318,0.002,58325.0,58324.0,0.10329483]
[1726531808009,0.002,58325.0,58324.0,0.01757183]
[1726531808598,0.087722,58325.0,58324.0,0.01757183]
[1726531814010,1.287804,58325.0,58324.0,0.015]
[1726531814201,1.202082,58325.0,58324.0,0.015]
[1726531815311,1.201082,58325.0,58324.0,0.006]
[1726531815609,0.085731,58319.0,58317.0,0.004]
[1726531815912,0.2004,58318.0,58314.0,0.085738]
[1726531816104,0.0004,58315.0,58314.0,0.085738]
[1726531817510,0.0014,58315.0,58314.0,0.085738]
[1726531817913,0.2,58318.0,58317.0,0.0006]
[1726531818107,0.20910271,58318.0,58317.0,0.001]
[1726531818702,0.20910271,58318.0,58317.0,0.086134]
[1726531819710,0.20910271,58318.0,58317.0,0.088134]
[1726531821306,0.00910271,58318.0,58317.0,0.088134]
[1726531821507,0.2,58318.0,58317.0,0.088134]
[1726531832518,0.00894259,58321.0,58320.0,0.085729]
[1726531832720,0.3608,58323.0,58322.0,0.085726]
[1726531832917,0.3608,58323.0,58322.0,0.086126]
[1726531833221,0.5608,58323.0,58322.0,0.085726]
[1726531833918,0.56993445,58323.0,58322.0,0.085726]
[1726531834112,0.57393445,58323.0,58322.0,0.085726]
[1726531834819,0.57693445,58323.0,58322.0,0.085726]
[1726531835021,0.37693445,58323.0,58322.0,0.085726]
[1726531835323,0.007,58323.0,58322.0,1.39191503]
[1726531835513,0.004,58328.0,58327.0,0.085719]
[1726531835713,0.2,58331.0,58329.0,0.085716]
[1726531836124,0.2,58331.0,58329.0,0.086116]
[1726531836323,0.2,58331.0,58329.0,0.085716]
[1726531836922,0.37215663,58330.0,58329.0,0.085716]
[1726531837123,0.38415663,58330.0,58329.0,0.085716]
[1726531838224,0.39415663,58330.0,58329.0,0.086716]
[1726531841327,0.39415663,58330.0,58329.0,0.13792539]
[1726531843328,0.39415663,58330.0,58329.0,0.086716]
[1726531844030,0.39415663,58330.0,58329.0,0.13792539]
[1726531845722,0.022,58330.0,58329.0,0.447516]
[1726531845924,0.004,58336.0,58335.0,0.085707]
[1726531846125,0.3608,58337.0,58336.0,0.085706]
[1726531846337,0.3699492,58337.0,58336.0,0.085706]
[1726531846528,0.3699492,58337.0,58336.0,0.086106]
[1726531846726,0.3699492,58337.0,58336.0,0.085706]
[1726531847528,0.3839492,58337.0,58336.0,0.085706]
[1726531847728,0.3839492,58337.0,58336.0,0.13688025]
[1726531848034,0.3969492,58337.0,58336.0,0.13788025]
[1726531848230,0.3969492,58337.0,58336.0,0.086706]
[1726531849538,0.3969492,58337.0,58336.0,0.135706]
[1726531850930,0.027,58337.0,58336.0,0.135706]
[1726531851133,0.027,58337.0,58336.0,0.221412]
[1726531851637,0.027,58337.0,58336.0,0.27258625]
[1726531852739,0.027,58337.0,58336.0,0.221412]
[1726531854736,0.027,58337.0,58336.0,0.086706]
[1726531856040,0.027,58337.0,58336.0,0.13783307]
[1726531856542,0.027,58337.0,58336.0,0.086706]
[1726531857039,0.027,58337.0,58336.0,0.13783307]
[1726531858136,0.027,58337.0,58336.0,0.086706]
[1726531858340,0.027,58337.0,58336.0,0.13783307]
[1726531860045,0.027,58337.0,58336.0,0.086706]
[1726531861238,0.027,58337.0,58336.0,0.13783307]
[1726531861944,0.027,58337.0,58336.0,0.086706]
[1726531863245,0.027,58337.0,58336.0,0.13783307]
[1726531863942,0.157,58337.0,58336.0,0.13783307]
[1726531864353,0.027,58337.0,58336.0,0.086706]
[1726531869854,0.027,58337.0,58336.0,0.15493834]
[1726531871250,0.027,58337.0,58336.0,0.086706]
[1726531875353,0.027,58337.0,58336.0,0.27766735]
[1726531881953,0.027,58337.0,58336.0,0.42208905]
[1726531884558,0.027,58337.0,58336.0,0.42189577]
[1726531887258,0.027,58337.0,58336.0,0.33618977]
[1726531887458,0.027,58337.0,58336.0,0.42189577]
[1726531888965,0.027,58337.0,58336.0,0.33618977]
[1726531889166,0.027,58337.0,58336.0,0.42189577]
[1726531891261,0.027,58337.0,58336.0,0.78269577]
[1726531891853,0.027,58337.0,58336.0,0.69698977]
[1726531892056,0.027,58337.0,58336.0,0.78269577]
[1726531893060,0.027,58337.0,58336.0,0.69698977]
[1726531893867,0.027,58337.0,58336.0,0.78269577]
[1726531894069,0.027,58337.0,58336.0,0.69698977]
[1726531898871,0.027,58337.0,58336.0,0.78269577]
[1726531899373,0.027,58337.0,58336.0,0.69698977]
[1726531900673,0.027,58337.0,58336.0,0.33618977]
[1726531901667,0.027,58337.0,58336.0,0.42189577]
[1726531902873,0.027,58337.0,58336.0,0.33618977]
[1726531903568,0.027,58337.0,58336.0,0.42189577]
[1726531903967,0.027,58337.0,58336.0,0.93613577]
[1726531904274,0.004,58343.0,58336.0,0.93613577]
[1726531904275,0.004,58343.0,58342.0,0.171394]
[1726531904579,0.00257085,58345.0,58344.0,0.085694]
[1726531904769,0.00257085,58345.0,58344.0,0.086094]
[1726531905072,0.00257085,58345.0,58344.0,0.085694]
[1726531906073,0.00657085,58345.0,58344.0,0.086694]
[1726531906470,0.00657085,58345.0,58344.0,0.172388]
[1726531906677,0.00657085,58345.0,58344.0,0.27734339]
[1726531906870,0.01957085,58345.0,58344.0,0.36378886]
[1726531907181,0.01957085,58345.0,58344.0,0.27834339]
[1726531907377,0.01957085,58345.0,58344.0,0.36376583]
[1726531907778,0.01957085,58345.0,58344.0,0.3637281]
[1726531907974,0.01957085,58345.0,58344.0,0.36374652]
[1726531908178,0.01957085,58345.0,58344.0,0.25881044]
[1726531908380,0.01957085,58345.0,58344.0,0.173388]
[1726531909080,0.01957085,58345.0,58344.0,0.36370879]
[1726531909484,0.017,58345.0,58344.0,1.39248635]
[1726531909873,0.017,58345.0,58344.0,1.49507072]
[1726531910273,0.017,58345.0,58344.0,1.4949081]
[1726531911378,0.017,58345.0,58344.0,1.4016566]
[1726531912076,0.004,58350.0,58344.0,1.4016566]
[1726531912077,0.004,58350.0,58349.0,0.171372]
[1726531912379,0.36337058,58356.0,58353.0,0.171362]
[1726531912380,0.004,58354.0,58353.0,0.171362]
[1726531912580,0.3608,58364.0,58359.0,0.085672]
[1726531912581,0.00120001,58364.0,58359.0,0.085672]
[1726531912779,0.0486,58374.0,58373.0,0.085651]
[1726531912978,0.05756158,58374.0,58373.0,0.086051]
[1726531913279,0.18756158,58374.0,58373.0,0.086051]
[1726531913480,0.18756158,58374.0,58373.0,0.085651]
[1726531914075,0.05756158,58374.0,58373.0,0.086651]
[1726531914275,0.18756158,58374.0,58373.0,0.086651]
[1726531915380,0.18756158,58374.0,58373.0,0.087651]
[1726531918479,0.18756158,58374.0,58373.0,0.448451]
[1726531920678,0.18756158,58374.0,58373.0,0.3628]
[1726531920880,0.18756158,58374.0,58370.0,0.00256968]
[1726531920881,1.30148158,58374.0,58370.0,0.00256968]
[1726531921178,1.30148158,58374.0,58362.0,0.00508]
[1726531921179,0.1304,58371.0,58362.0,0.004]
[1726531921379,0.1304,58371.0,58358.0,0.05114139]
[1726531921380,0.216064,58364.0,58358.0,0.00257]
[1726531921978,0.286064,58364.0,58358.0,0.00257]
[1726531922375,0.286064,58364.0,58360.0,0.085669]
[1726531927289,0.286064,58364.0,58361.0,0.085668]
[1726531927792,0.29528649,58364.0,58363.0,0.086066]
[1726531928690,0.00962249,58364.0,58363.0,0.086066]
[1726531929994,0.09528649,58364.0,58363.0,0.086066]
[1726531930190,0.09528649,58364.0,58363.0,0.0004]
[1726531934299,0.09528649,58364.0,58363.0,0.0014]
[1726531936092,0.09528649,58364.0,58363.0,0.0024]
[1726531937997,0.69495049,58364.0,58363.0,0.0024]
[1726531939103,1.05575049,58364.0,58363.0,0.0024]
[1726531939901,0.54175049,58364.0,58363.0,0.0024]
[1726531941899,0.67175049,58364.0,58363.0,0.0024]
[1726531942896,0.71945049,58364.0,58363.0,0.0024]
[1726531944508,0.58945049,58364.0,58363.0,0.0024]
[1726531944707,0.71945049,58364.0,58363.0,0.0024]
[1726531947819,1.74778649,58364.0,58359.0,0.05114139]
[1726531948117,0.085672,58359.0,58358.0,0.00257]
[1726531948416,0.086072,58359.0,58358.0,0.00257]
[1726531948617,0.216072,58359.0,58358.0,0.00257]
[1726531949609,0.086072,58359.0,58358.0,0.00257]
[1726531950021,0.216072,58359.0,58358.0,0.00257]
[1726531950517,0.216072,58359.0,58358.0,0.00357]
[1726531950717,0.0004,58359.0,58358.0,0.00357]
[1726531950923,0.0004,58359.0,58358.0,0.138043]
[1726531951916,0.0004,58359.0,58358.0,0.139043]
[1726531955616,0.01014249,58364.0,58363.0,0.171332]
[1726531955921,0.00257,58367.0,58366.0,0.085662]
[1726531956122,0.00257,58367.0,58366.0,0.086062]
[1726531956316,0.0114485,58367.0,58366.0,0.086062]
[1726531956518,0.00257,58367.0,58366.0,0.086062]
[1726531957013,0.00257,58367.0,58366.0,0.371724]
[1726531957618,0.00257,58367.0,58366.0,0.92193804]
[1726531957924,0.00257,58367.0,58366.0,0.83656568]
[1726531958115,0.00257,58367.0,58366.0,0.83756568]
[1726531958429,0.00257,58367.0,58366.0,0.83856568]
[1726531958720,0.00257,58367.0,58366.0,0.81985468]
[1726531959123,0.00257,58367.0,58366.0,0.92363338]
[1726531959519,0.00257,58367.0,58366.0,0.734524]
[1726531963527,0.00257,58367.0,58366.0,0.8027285]
[1726531964124,0.00257,58367.0,58366.0,0.734524]
[1726531964330,0.00257,58367.0,58366.0,0.80272608]
[1726531966134,0.00257,58367.0,58366.0,0.734524]
[1726531971738,0.00257,58367.0,58366.0,0.80272608]
[1726531972242,0.00257,58367.0,58366.0,0.734524]
[1726531972825,0.00257,58367.0,58366.0,0.80272608]
[1726531973728,0.00257,58367.0,58366.0,0.734524]
[1726531973925,0.00257,58367.0,58366.0,0.73272608]
[1726531974637,0.004,58374.0,58371.0,0.085653]
[1726531974827,0.00656973,58377.0,58376.0,0.171294]
[1726531975029,0.00256973,58377.0,58376.0,0.37025436]
[1726531975332,0.00256973,58377.0,58376.0,0.301294]
[1726531975529,0.00256973,58377.0,58376.0,0.36941408]
[1726531977739,0.00256973,58377.0,58376.0,0.301294]
[1726531977936,0.00256973,58377.0,58376.0,0.371294]
[1726531979435,0.00256973,58377.0,58376.0,0.43941408]
[1726531979940,0.00256973,58377.0,58376.0,0.371294]
[1726531980237,0.00256973,58377.0,58376.0,0.38023197]
[1726531981347,0.00256973,58377.0,58376.0,0.44835205]
[1726531982641,0.00256973,58377.0,58376.0,0.38023197]
[1726531982841,0.00256973,58377.0,58376.0,0.44836066]
[1726531983236,0.00256973,58377.0,58376.0,0.38023197]
[1726531985545,0.00256973,58377.0,58376.0,0.18023197]
[1726531987636,0.00256973,58377.0,58376.0,0.085647]
[1726531988037,0.00256973,58377.0,58376.0,0.171294]
[1726531988244,0.00256973,58377.0,58376.0,0.15382147]
[1726531988448,0.36336973,58377.0,58375.0,0.05113661]
[1726531988639,0.085649,58375.0,58373.0,0.05193661]
[1726531988943,0.0461,58374.0,58373.0,0.0008]
[1726531989144,0.0932,58374.0,58373.0,0.0008]
[1726531990150,0.17885,58374.0,58373.0,0.0008]
[1726531991447,0.17885,58374.0,58373.0,0.0018]
[1726531991652,0.17885,58374.0,58373.0,0.0028]
[1726531991944,0.17885,58374.0,58373.0,0.0018]
[1726531992448,0.17885,58374.0,58373.0,0.0008]
[1726531994847,0.18608039,58374.0,58373.0,0.0008]
[1726531997249,1.30000039,58374.0,58373.0,0.0008]
[1726531998951,1.38565039,58374.0,58373.0,0.0008]
[1726531999546,1.74645039,58374.0,58373.0,0.0008]
[1726532000049,1.87645039,58374.0,58373.0,0.0008]
[1726532003246,1.51565039,58374.0,58373.0,0.0008]
[1726532003449,1.87645039,58374.0,58373.0,0.0008]
[1726532005248,1.51565039,58374.0,58373.0,0.0008]
[1726532005454,1.87645039,58374.0,58373.0,0.0008]
[1726532007159,1.51565039,58374.0,58373.0,0.0008]
[1726532007455,1.87645039,58374.0,58373.0,0.0008]
[1726532007649,1.87645039,58374.0,58368.0,0.00256957]
[1726532007650,0.085657,58369.0,58368.0,0.00256957]
[1726532007850,0.215657,58369.0,58368.0,0.00256957]
[1726532008053,0.216457,58369.0,58368.0,0.00256957]
[1726532009763,0.216457,58369.0,58368.0,0.00756957]
[1726532009948,1.330417,58369.0,58368.0,0.00756957]
[1726532010661,1.330417,58369.0,58368.0,0.01256957]
[1726532011269,0.730417,58369.0,58368.0,0.01256957]
[1726532014755,1.091217,58369.0,58368.0,0.01256957]
[1726532015259,1.176874,58369.0,58368.0,0.01256957]
[1726532015468,1.776874,58369.0,58368.0,0.01256957]
[1726532016058,1.176874,58369.0,58368.0,0.01256957]
[1726532018367,1.20465496,58369.0,58368.0,0.01256957]
[1726532019860,0.69069496,58369.0,58368.0,0.01256957]
[1726532020261,0.532914,58369.0,58368.0,0.01256957]
[1726532020462,0.69069379,58369.0,58368.0,0.01256957]
[1726532020768,0.447257,58369.0,58368.0,0.01256957]
[1726532020968,0.577257,58369.0,58368.0,0.01256957]
[1726532023771,0.447257,58369.0,58368.0,0.01256957]
[1726532024067,0.447257,58369.0,58368.0,0.09822857]
[1726532032177,0.47503553,58369.0,58368.0,0.09822857]
[1726532034568,0.447257,58369.0,58368.0,0.09822857]
[1726532034781,0.3616,58369.0,58368.0,0.09822857]
[1726532034976,0.38937879,58369.0,58368.0,0.09822857]
[1726532035383,0.3893788,58369.0,58368.0,0.09822857]
[1726532035582,0.38937885,58369.0,58368.0,0.09822857]
[1726532035973,0.38937852,58369.0,58368.0,0.09822857]
[1726532036475,0.38937873,58369.0,58368.0,0.09822857]
[1726532040586,0.38937985,58369.0,58368.0,0.09822857]
[1726532042180,0.02857985,58369.0,58368.0,0.09822857]
[1726532042383,0.38937985,58369.0,58368.0,0.09822857]
[1726532042684,0.47503685,58369.0,58368.0,0.01256957]
[1726532043475,0.47503685,58369.0,58368.0,0.09822857]
[1726532043978,0.47503702,58369.0,58368.0,0.09822857]
[1726532044484,0.47503702,58369.0,58368.0,0.002]
[1726532044686,0.43668002,58369.0,58364.0,0.004]
[1726532044983,0.216064,58365.0,58360.0,0.15784447]
[1726532045187,0.3612,58361.0,58360.0,0.08567]
[1726532045890,0.3522,58361.0,58360.0,0.08567]
[1726532046375,0.0004,58361.0,58360.0,0.08567]
[1726532046581,0.0004,58361.0,58360.0,0.16784447]
[1726532047487,0.1214,58363.0,58360.0,0.16784447]
[1726532047692,0.207066,58363.0,58362.0,0.0004]
[1726532049687,0.567866,58363.0,58362.0,0.0004]
[1726532049987,0.57493692,58363.0,58362.0,0.0004]
[1726532050183,0.57493692,58363.0,58362.0,0.0114]